Cogmind - Beta 13 @@@ ROGUE MODE // 2024.06.02 @ 01:19:13 Player: wojo Result: Self-destructed Performance ------------- Evolutions (1) 500 Regions Visited (5) 1000 Robots Destroyed (11) 55 Value Destroyed (213) 213 Prototype IDs (3) 60 Alien Tech Used (0) 0 Bonus (660) 660 TOTAL SCORE: 2488 Bonus ------- Follower Combat Kills 60 Met Imprinter 300 Was Imprinted 300 Cogmind --------- Core Integrity 267/400 Matter 300/300 Energy 100/100 System Corruption 0% Temperature Cool (96) Movement Core (100) Ox1 Location -6/Proximity Caves Parts ------- > --- POWER (1) -------- (None) > --- PROPULSION (4) --- (None) > --- UTILITY (2) ------ Small Storage Unit > --- WEAPON (2) ------- (None) > --- INVENTORY (8) ---- Heavy Beamcaster Heavy Assault Rifle Barrage Gun Assault Cannon Slug Cannon Phasing Sabre Peak State ------------ > --- POWER ------------ Improved Deuterium Engine > --- PROPULSION ------- Airjet Airjet Airjet Airjet > --- UTILITY ---------- Small Storage Unit Structural Scanner > --- WEAPON ----------- Improved Medium Laser Improved Assault Rifle > --- INVENTORY -------- Improved Ion Engine Improved EM Shotgun Heavy Beamcaster Heavy Assault Rifle Barrage Gun Assault Cannon Slug Cannon Phasing Sabre [Rating: 26] Favorites ----------- Power Ion Engine Engine Ion Engine Propulsion Airjet Leg Aluminum Leg Hover Unit Airjet Utility Small Storage Unit Device Structural Scanner Storage Small Storage Unit Weapon Improved Medium Laser Energy Gun Improved Medium Laser Ballistic Gun Improved Assault Rifle Ballistic Cannon Light Cannon Special Melee Weapon Datajack Build | -11 -10 -9 -9 -7 -6 ------- Run | Yrd Mat Mat Min Zio Pro Slots Evolved 2 | . . 2 . . . Power . | . . . . . . Propulsion 2 | . . 2 . . . Utility . | . . . . . . Weapon . | . . . . . . Parts Attached 27 | 6 5 14 . 1 1 Power 5 | 1 . 2 . 1 1 Engine 5 | 1 . 2 . 1 1 Core . | . . . . . . Reactor . | . . . . . . Propulsion 8 | 2 . 6 . . . Treads . | . . . . . . Leg 4 | 2 . 2 . . . Wheel . | . . . . . . Hover 4 | . . 4 . . . Flight . | . . . . . . Utility 2 | 1 1 . . . . Device 1 | . 1 . . . . Storage 1 | 1 . . . . . Processor . | . . . . . . Hackware . | . . . . . . Protection . | . . . . . . Artifact . | . . . . . . Weapon 12 | 2 4 6 . . . Energy Gun 7 | 1 3 3 . . . Energy Cannon . | . . . . . . Ballistic Gun 2 | 1 . 1 . . . Ballistic Cannon 2 | . . 2 . . . Launcher . | . . . . . . Special Weapon . | . . . . . . Impact Weapon . | . . . . . . Slashing Weapon . | . . . . . . Piercing Weapon . | . . . . . . Special Melee Weapon 1 | . 1 . . . . Unidentified Prototypes 3 | . . 3 . . . Corrupted Parts 1 | . . 1 . . . System Corruption 1 | . . 1 . . . Parts Lost 11 | . 1 1 . . 9 Power 2 | . . . . . 2 Propulsion 4 | . . . . . 4 Utility 1 | . . . . . 1 Weapon 4 | . 1 1 . . 2 Highest Loss Streak 9 | . 1 1 . . 9 To Critical Strikes . | . . . . . . Average Slot Usage (%) 98 | . 98 97 100 100 92 Engine 11 | . 14 11 11 11 10 Leg 15 | . 28 24 . . . Hover 22 | . . 18 44 44 38 Device 11 | . 13 11 11 11 11 Storage 12 | . 14 11 11 11 11 Energy Gun 13 | . 18 10 11 11 10 Ballistic Gun 7 | . 7 2 11 11 11 Ballistic Cannon 1 | . . 7 . . . Naked Turns . | . . . . . . Heaviest Build 22 | 12 15 21 19 22 22 Greatest Support 32 | 20 20 32 32 32 32 Greatest Overweight (x) 2 | . . 2 . . . Average Overweight (x) . | . . . . . . Largest Inventory Capacity 8 | 8 8 8 8 8 8 Average Capacity 7 | 6 8 8 8 8 8 Most Carried 8 | 2 8 8 7 8 8 Average Carried 6 | 1 5 6 7 7 7 Final Capacity 8 | 8 8 8 8 8 8 Final Carried 8 | 2 8 7 7 8 6 Class Distribution -------------------- 97% | Mutant Dominant Class ---------------- Mutant | -10/Materials Mutant | -9/Materials Mutant | -9/Mines Mutant | -7/Zion Mutant | -6/Proximity Caves Resources | -11 -10 -9 -9 -7 -6 ----------- Run | Yrd Mat Mat Min Zio Pro Matter Collected 537 | 256 54 211 . . 16 Remotely . | . . . . . . Salvage Created 328 | . 160 168 . . . Parts 25 | . 12 13 . . . Haulers Intercepted 2 | . 1 1 . . . Recyclers Shooed . | . . . . . . Parts Field Recycled . | . . . . . . Retrieved Matter . | . . . . . . Parts Self-Destructed 6 | . . . . . 6 Prevented . | . . . . . . Kills | -11 -10 -9 -9 -7 -6 ------- Run | Yrd Mat Mat Min Zio Pro Combat Hostiles Destroyed 7 | . 4 3 . . . Guns 4 | . 3 1 . . . Cannons 2 | . . 2 . . . AOE 1 | . 1 . . . . Classes Destroyed 5 | . 4 1 . . . Hauler 2 | . 1 1 . . . Watcher 2 | . 1 1 . . . Swarmer 3 | . 3 . . . . Grunt 3 | . 1 2 . . . Sentry 1 | . . 1 . . . Best Kill Streak 3 | . 3 2 . . . Combat Bots Only 3 | . 3 1 . . . Max Kills in Single Turn 1 | . 1 1 . . . Gunslinging . | . . . . . . Exploded 1 | . 1 . . . . Melee . | . . . . . . Uniques/NPCs Destroyed . | . . . . . . Combat | -11 -10 -9 -9 -7 -6 -------- Run | Yrd Mat Mat Min Zio Pro Hostile Shots Fired 116 | . 35 15 . . 66 Missed 43 | . 14 7 . . 22 Damage Taken 1126 | . 269 115 . . 742 Core 215 | . 82 . . . 133 Absorbed by Shields . | . . . . . . Regen/Repaired (Parts) 7 | . . . . 7 . Core Remaining (%) 83 | 100 67 . . . . Volleys Fired 30 | . 9 14 . . 7 Largest 2 | . 2 2 . . 2 Hottest 91 | . 80 91 . . 79 Shots Fired 57 | . 18 26 . . 13 Gun 44 | . 18 13 . . 13 Cannon 13 | . . 13 . . . Launcher . | . . . . . . Special . | . . . . . . Kinetic 23 | . 2 14 . . 7 Thermal 14 | . 2 6 . . 6 Explosive . | . . . . . . Electromagnetic 20 | . 14 6 . . . Robot Hit Streak 7 | . 5 7 . . 5 Robot Miss Streak 2 | . 2 1 . . 2 Penetration Max . | . . . . . . Secondary Targets 1 | . 1 . . . . Max Gunslinging Chain 1 | . 1 . . . . Shots Hit Robots 38 | . 11 19 . . 8 Core Hits 20 | . 9 8 . . 3 Critical Kills . | . . . . . . Critical Parts Destroyed . | . . . . . . Critical Strikes 1 | . . 1 . . . Blast 1 | . . 1 . . . Melee Attacks . | . . . . . . Impact . | . . . . . . Slashing . | . . . . . . Piercing . | . . . . . . Sneak Attacks . | . . . . . . Combat Hostiles . | . . . . . . Follow-up Attacks . | . . . . . . Damage Inflicted 627 | . 186 315 . . 126 Guns 385 | . 155 104 . . 126 Cannons 211 | . . 211 . . . Explosions 23 | . 23 . . . . Melee . | . . . . . . Ramming 8 | . 8 . . . . Kinetic 310 | . 6 211 . . 93 Thermal 113 | . 34 46 . . 33 Explosive . | . . . . . . Electromagnetic 196 | . 138 58 . . . Impact . | . . . . . . Slashing . | . . . . . . Piercing . | . . . . . . Highest Corruption 1 | . . 1 1 1 . Average Corruption 1 | . . 1 1 1 . Corruption Purged . | . . . . . . Corruption Blocked . | . . . . . . Effects 3 | . . 3 . . . Message Errors 1 | . . 1 . . . Matter Fused 2 | . . 2 . . . Overload Shots . | . . . . . . Overflow Damage . | . . . . . . Projectiles . | . . . . . . Explosions . | . . . . . . Melee . | . . . . . . Knockbacks . | . . . . . . Impact . | . . . . . . Kinetic . | . . . . . . Secondary . | . . . . . . Self-Inflicted Damage 38 | . 38 . . . . Shots 1 | . 1 . . . . Rammed . | . . . . . . Targets Rammed 2 | . 2 . . . . Kicked 2 | . 2 . . . . Crushed . | . . . . . . Highest Temperature 91 | . 84 84 . . 91 Average Temperature 35 | . 36 34 . . 37 Received Heat Transfer 240 | . 102 48 . . 90 Siege Activations . | . . . . . . Robots Corrupted . | . . . . . . Combat Hostiles . | . . . . . . Parts Fried 1 | . . 1 . . . Impact Corruptions . | . . . . . . Robots Melted . | . . . . . . Combat Hostiles . | . . . . . . Parts Melted . | . . . . . . Heat Transferred 260 | . 75 111 . . 74 Parts Sabotaged . | . . . . . . Parts Stolen . | . . . . . . Parts Stripped . | . . . . . . Power Chain Reactions 1 | . 1 . . . . Alert | -11 -10 -9 -9 -7 -6 ------- Run | Yrd Mat Mat Min Zio Pro Peak Influence 163 | . 86 163 63 . . Initial 63 | . . 18 63 . . Average 36 | . 8 87 63 . . Maximum Alert Level . | . . . . . . Low Security (%) 100 | 100 100 100 100 . . Level 1 . | . . . . . . Level 2 . | . . . . . . Level 3 . | . . . . . . Level 4 . | . . . . . . Level 5 . | . . . . . . High Security . | . . . . . . Max Security . | . . . . . . Squads Dispatched 6 | . 1 4 . . 1 Investigation 1 | . 1 . . . . Extermination . | . . . . . . Reinforcement 4 | . . 4 . . . Assault 1 | . . . . . 1 Garrison . | . . . . . . Intercept . | . . . . . . Searches Triggered . | . . . . . . Construction Impeded . | . . . . . . Haulers Reinforced . | . . . . . . Active Scanning Responses . | . . . . . . Cargo Convoy Interrupts . | . . . . . . Stealth | -11 -10 -9 -9 -7 -6 --------- Run | Yrd Mat Mat Min Zio Pro Distress Signals 3 | . 1 2 . . . Communications Jammed . | . . . . . . Distress Signals . | . . . . . . Times Spotted 30 | . 8 9 . . 13 Peak Tracking Total 11 | . 4 2 . . 11 Tactical Retreats . | . . . . . . Traps | -11 -10 -9 -9 -7 -6 ------- Run | Yrd Mat Mat Min Zio Pro Traps Triggered . | . . . . . . Indirectly . | . . . . . . Trap Hack Attempts 12 | . 12 . . . . Triggered . | . . . . . . Disarmed . | . . . . . . Reprogrammed 1 | . 1 . . . . Reused 1 | . 1 . . . . Traps Extracted . | . . . . . . Installed . | . . . . . . Triggered 3 | . 1 . . . 2 Machines | -11 -10 -9 -9 -7 -6 ---------- Run | Yrd Mat Mat Min Zio Pro Machines Disabled . | . . . . . . Max in Single Turn . | . . . . . . Machines Repaired . | . . . . . . Machines Dismantled . | . . . . . . Machines Sabotaged . | . . . . . . Overloaded Fab Kills . | . . . . . . Hacking | -11 -10 -9 -9 -7 -6 --------- Run | Yrd Mat Mat Min Zio Pro Machines Accessed 2 | . 1 1 . . . Terminals 2 | . 1 1 . . . Fabricators . | . . . . . . Repair Stations . | . . . . . . Recycling Units . | . . . . . . Scanalyzers . | . . . . . . Garrison Access . | . . . . . . Total Hacks 4 | . 1 3 . . . Successful 2 | . . 2 . . . Failed 2 | . 1 1 . . . Catastrophic 1 | . 1 . . . . Database Lockouts . | . . . . . . Manual 1 | . . . . 1 . Terminals 4 | . 1 3 . . . Fabricators . | . . . . . . Repair Stations . | . . . . . . Recycling Units . | . . . . . . Scanalyzers . | . . . . . . Garrison Access . | . . . . . . Terminal Hacks 2 | . . 2 . . . Record 2 | . . 2 . . . Fabricator Hacks . | . . . . . . Repair Station Hacks . | . . . . . . Recycling Unit Hacks . | . . . . . . Scanalyzer . | . . . . . . Garrison Access Hacks . | . . . . . . Unauthorized Hacks . | . . . . . . Terminals . | . . . . . . Fabricators . | . . . . . . Repair Stations . | . . . . . . Recycling Units . | . . . . . . Scanalyzers . | . . . . . . Garrison Access . | . . . . . . Data Cores Recovered . | . . . . . . Used . | . . . . . . Hacking Detections 2 | . 1 1 . . . Full Trace Events . | . . . . . . Feedback Events . | . . . . . . Feedback Blocked . | . . . . . . Robot Schematics Acquired 2 | . . . . 2 . Robots Built . | . . . . . . Authchips . | . . . . . . Time . | . . . . . . Total Robot Build Rating . | . . . . . . Part Schematics Acquired 15 | . . . . 15 . Parts Built . | . . . . . . Authchips . | . . . . . . Time . | . . . . . . Total Part Build Rating . | . . . . . . Parts Repaired . | . . . . . . Time . | . . . . . . Parts Recycled . | . . . . . . Recycled Matter . | . . . . . . Retrieved Matter . | . . . . . . Retrieved Components . | . . . . . . Parts Scanalyzed . | . . . . . . Part Schematics Acquired . | . . . . . . Parts Damaged . | . . . . . . Bothacking | -11 -10 -9 -9 -7 -6 ------------ Run | Yrd Mat Mat Min Zio Pro Used RIF Installer . | . . . . . . Robots Hacked . | . . . . . . Non-combat . | . . . . . . Combat . | . . . . . . Robot Hacks Applied . | . . . . . . Relay Couplers Released . | . . . . . . Fabnet Peak Effective % . | . . . . . . Robots Rewired . | . . . . . . Allies Hacked . | . . . . . . Hacks Repelled . | . . . . . . Allies | -11 -10 -9 -9 -7 -6 -------- Run | Yrd Mat Mat Min Zio Pro Total Allies 4 | . . . . 4 . Largest Group 4 | . . . . 4 4 Highest-Rated Group 153 | . . . . 153 153 Highest-Rated Ally 40 | . . . . 40 40 Total Orders . | . . . . . . Ally Attacks 5 | . . . . . 5 Total Damage 129 | . . . . . 129 Kills 3 | . . . . . 3 Allies Corrupted . | . . . . . . Allies Melted . | . . . . . . Intel | -11 -10 -9 -9 -7 -6 ------- Run | Yrd Mat Mat Min Zio Pro Robot Analysis Total . | . . . . . . Derelict Logs Recovered 2 | . . . . 1 1 Drone Launches . | . . . . . . Drone Recoveries . | . . . . . . Exploration | -11 -10 -9 -9 -7 -6 ------------- Run | Yrd Mat Mat Min Zio Pro Turns Passed 1542 | 59 520 326 4 512 121 Spaces Moved 1858 | 42 384 350 8 872 202 Core 3 | 3 . . . . . Treads . | . . . . . . Legs 531 | 39 384 108 . . . Wheels . | . . . . . . Hover 1324 | . . 242 8 872 202 Flight . | . . . . . . Fastest Speed 48 | 50 120 48 48 48 48 Average Speed 68 | 115 120 70 48 48 48 Slowest Speed 180 | 120 120 180 48 48 52 Overloaded Moves . | . . . . . . Propulsion Burnouts . | . . . . . . Robots Hopped . | . . . . . . Cave-ins Triggered . | . . . . . . Exploration Rate (%) 34 | 5 49 28 5 87 31 Regions Visited 5 Branch Regions 3 Pre-discovered Areas . | . . . . . . Known Exits Taken . | . . . . . . Unknown Exits Taken 5 | 1 1 1 1 1 . Scrap Searched 2 | . . . . 2 . Spaces Dug . | . . . . . . Terrain Destroyed 2 | . 2 . . . . Melee . | . . . . . . Projectile . | . . . . . . AOE 2 | . 2 . . . . Terrain Rammed . | . . . . . . Walls Destroyed . | . . . . . . Machines Disabled . | . . . . . . Actions | -11 -10 -9 -9 -7 -6 --------- Run | Yrd Mat Mat Min Zio Pro Total 2065 | 49 425 403 7 968 213 Wait 79 | . . . . 79 . Move 1853 | 41 383 349 7 871 202 Hop . | . . . . . . Pick Up 33 | 2 10 11 . 9 1 Fast Attach 13 | 6 1 6 . . . Attach 5 | . 1 3 . . 1 Detach . | . . . . . . Swap 9 | . 3 5 . 1 . Drop 29 | . 4 15 . 8 2 Fire 30 | . 9 14 . . 7 Melee . | . . . . . . Ram . | . . . . . . Kick 2 | . 2 . . . . Crush . | . . . . . . Escape Stasis . | . . . . . . Rewire . | . . . . . . Trap 12 | . 12 . . . . Miscellaneous . | . . . . . . Route ------- -11/Scrapyard -10/Materials -9/Materials -9/Mines -7/Zion -6/Proximity Caves (discovered 1 exit: Fac) History --------- Turn | Location | Event 21 | -11/Scrapyard | Discovered new exit (range 16) 60 | -11/Scrapyard | Entered Materials 217 | -10/Materials | Discovered new exit (range 7) 302 | -10/Materials | Build established: Mutant 580 | -10/Materials | Entered another Materials area 580 | -9/Materials | Evolved 2 slots: Propulsion x2 820 | -9/Materials | Met 8R-AWN 877 | -9/Materials | Discovered new exit (range 13) 906 | -9/Materials | Entered Mines 907 | -9/Mines | A Derelict revealed a hidden shortcut to a safe place 910 | -9/Mines | Entered Zion 927 | -7/Zion | System corruption cleaned by Quarantine Array 1058 | -7/Zion | Imprinted 1060 | -7/Zion | Declared Zion's savior 1275 | -7/Zion | Learned location of 1 exit from Proximity Caves 1331 | -7/Zion | Discovered new exit (range 15) 1422 | -7/Zion | Entered Proximity Caves 1422 | -6/Proximity Caves | Accompanied by 4 allies 1423 | -6/Proximity Caves | Identified exit to Factory 1494 | -6/Proximity Caves | Learned 12 Factory zone layouts 1518 | -6/Proximity Caves | Attracted the attention of an 0b10 outpost 1543 | -6/Proximity Caves | Self-destructed Last Messages --------------- G-50 Soldier springs to life. L-41 Fighter springs to life. C-30 ARC bursts open, deploying its payload. S-27 Virus unfolds itself. Airjet destroyed. Y-64 Sentinel: "DETECTED UNIDENTIFIED DERELICT." Y-64 Sentinel: "REQUESTING BACKUP." Imp. Deuterium Engine destroyed. Penetrated by Slug. Airjet destroyed. Penetrated by Slug. L-41 Fighter suffers critical hit (Burn). Slug penetrates Wall. Penetrated by Slug. Imp. Medium Laser destroyed. Airjet destroyed. Penetrated by Slug. Structural Scanner destroyed. Imp. Assault Rifle destroyed. Imp. Ion Engine destroyed. Map ----- +----------------------------------------------------+ | ##### ### ############ #### # ##### # # "" | | # ## #### #### ### ## # " | | # ### # ## " | | # #### # ####### "" | | # ### # ##### # # ###### " | | # # ### # ### # # ######## | | ## # ## # % # # # ##### | | ### ### ## # #### ###### | | # ######## #### # ### ###### | | ######### ######%=# # ### #### ###???? | | ###????########### [## ##### #### ###???? | | # ####?????######?### ## ### #### ####??? | | # ###????????######## %## # ##### ####?? | | # ##??????????### ### ## ####### ###?? | | ? ?????????### ######??### ##?? | | ? ???????????## #############????### ##?? | | ? ???????????## ###########????###### ##?? | | ? ???????????### ####?????????######### ##?? | | ? ????????????#######?####??????##### ## ##### | | # ????????????###########??????## ##### | | # ?????????????????#### #??????### ## # | | ?????????????????## ###????### ### | | ????????????????????## ########## ## ## | | ????????????????????## ############# | | ????????????????????## ####### " | | ????????????????????### @ll ###### "%" | | ????????????????????###### ### ## | | ?????????????????????###### s s g ## | | ????????????????????????#### s s | | ?????????????????????????### | | ??????????????????????????#### g | | ??????????????????????????#### Y # | | ????????????????????????????### ## # | | ????????????????????????????#### #### # | | ?????????????????????????????########## ## # | | ?????????????????????????????? ####### | | ??????????????????????????????????### ####/### | | ??????????????????????????????????## # # "# | | ??????????????????????????????????## # "# | | ?????????????????????????????????? ? / "# | | ????????????????????????????????? ? / "# | | ??????????????????????????????? # "# | | ?????????????????????????????? # # "# | | ?????????????????????????????? ####+### | | ?????????????????????????????? | | ??????????????????????????????? ### ???????? | | ????????????????????????????????? #### ???????? | | ?????????????????????????????????????#### ???????? | | ???????????????????????????????????????## ???????? | | ?????????????????????????????????????????????????? | +----------------------------------------------------+ Best States ------------- Heat Dissipation 28 Energy Generation 16 Energy Capacity 290 Matter Stores 300 Matter Capacity 300 Sight Range 16 Terrain Scan Density 10 Evasion (%) 55 Item Schematics ----------------- Imp. Heavy Armor Plating | -7/Zion | Archive Imp. Salvage Targeting Computer | -7/Zion | Archive Hyp. Gauss Cannon | -7/Zion | Archive Imp. Focal Shield | -7/Zion | Archive Imp. Melee Analysis Suite | -7/Zion | Archive Phase Cannon | -7/Zion | Archive Arm. Huge Wheel | -7/Zion | Archive Energy Well | -7/Zion | Archive Mak. Transmission Jammer | -7/Zion | Archive Recalibrator | -7/Zion | Archive Imp. EM Pulse Cannon | -7/Zion | Archive Flexi-carbon Leg | -7/Zion | Archive Core Analyzer | -7/Zion | Archive Proton Cannon | -7/Zion | Archive Med. Reactive Plating | -7/Zion | Archive Robot Schematics ------------------ B-48 Gladiator | -7/Zion | Archive H-55 Commando | -7/Zion | Archive Fabricated ------------ Nothing Alien Tech Used ----------------- None Achievements -------------- Hehehe Challenges ------------ None Game ------ Seed CloakSubatomicExtractor Manual? 0 Play Time 00:33:39 Cumulative 12.2 hours Start 2024.06.02 @ 00:35:51 End 2024.06.02 @ 01:19:13 Sessions 1 Manual Loads 0 Difficulty Rogue Special Mode None Game No. 24 Rogue 24 Adventurer 0 Explorer 0 Win Type - Total 0 Types 0/0/0/0/0/0/0/0/0 Lore% 10 Gallery% 18 Achievement% 15 Wizard Run 0 Options --------- Layout 1 ASCII 0 Keyboard 0 Movement Arrows Keybinds 0 Fullscreen 1 Font 16/Terminus Map View 50x40 Zoom Use 0% Tactical HUD 0 Map Filters NONE Filters NONE Steam SD RUN: a43258f1-c9cc-4899-95ed-8628a70f94f4